{"text_format":"3","workbook":"xlsx","n_sheets":15,"sheets":["Balanza Comprobacion","ESF SNS","ERF SRS","Efectivo","Cuentas por Cobrar","Inventario","Mobiliario Eq. Ofc.","CXP Corto plazo","Pagos anticipados","Retenciones y Acum.","Benef. Empl x p Corto Plazo","CXP Largo Plazo","Patrimonio","Ingresos","Total Gasto"],"not_rendered":{"images":2,"external_links":1},"read":"whole","date_system":"1900"}

{"sheet":"Balanza Comprobacion","index":0,"n_rows":246,"n_cols":23,"rows_kept":246,"merged":[[0,3,0,5],[1,3,1,5],[2,3,2,5],[3,3,3,5],[4,3,4,5]]}
[{"$nulls":3},"Diferencia para control debe ser cero"]
[{"$nulls":3},"HOSPITAL DR. ROMAN BRACHE "]
[{"$nulls":3},"Balanza de comprobación"]
[{"$nulls":3},"Al 30 DE JUNIO   del 2025"]
[{"$nulls":3},"                                        (Valores en RD$)                                                    4.1.2.3.01"]
[null,"**",null,"Cuentas ","DB","CR"]
[null,"0001","0001","Efectivo y Banco",{"v":450022.04,"d":"$450,022.04"}]
[null,"0004",null,"Cuentas por cobrar ",{"v":1596451.38,"d":"$1,596,451.38"}]
[null,"0005",null,"Inventario",{"v":1947528.25,"d":"$1,947,528.25"}]
[null,"0006",null,"Pagos anticipados"]
[null,"0012",null,"Mobiliarios y equipos de oficina",{"v":216130,"d":"$216,130.00"}]
[{"$nulls":3},"terreno"]
[null,"**",null,"PASIVOS"]
[null,"0016",null,"Cuentas por pagar a corto plazo",null,{"v":1442689.87,"d":"$1,442,689.87"}]
[null,"0019",null,"Retenciones y acumulaciones por pagar"]
[{"$nulls":3},"Beneficios a empleados a corto plazo "]
[{"$nulls":3},"Cuentas por pagar a largo plazo "]
[{"$nulls":3},"Capital",null,{"v":2767471.8,"d":"$2,767,471.80"}]
[null,"0033",null,"Resultado acumulado"]
[null,"0032",null,"Resultado del período",null,{"v":1050306.61,"d":"$1,050,306.61"}]
[{"$nulls":3},"Ajustes"]
[null,"0037",null,"Ingresos"]
[null,"0039","211101","Sueldos fijos"]
[null,"0039","211208","empleados temporales "]
[null,"0039","211401","Sueldo anual no. 13"]
[null,"0039","212206","Incentivos por rendimientos individual "]
[{"$nulls":3},"SOBRESUELDOS"]
[{"$nulls":3},"Prestación laboral por desvinculación"]
[{"$nulls":3},"Compensaciones especiales"]
[null,"0039","0015","Compensación por horas extraordinarias"]
[null,null,"212205","Compensación por servicio de seguridad"]
[null,null,"212206","Compensaciones por resultado"]
[null,null,"212207","Compensación por distancia"]
[null,"0039",null,"Pago de horas extraordinarias, Horas extraordinarias fin de año (Reglamento 523-09)"]
[null,"0039","0017","Bono por desempeño"]
[{"$nulls":3},"GRATIFICACIONES Y BONIFICACIONES"]
[null,"0039","0018","Gratificaciones por aniversario de institución"]
[{"$nulls":3},"CONTRIBUCIONES A LA SEGURIDAD SOCIAL Y RIESGO LABORAL"]
[null,null,"214101","Bonificaciones"]
[null,"0039","215101","Contribuciones al seguro de salud"]
[null,"0039","215201","Contribuciones al seguro de pensiones "]
[null,"0039","215301","Contribuciones al seguro de riesgo laboral"]
[{"$nulls":3},"SERVICIOS NO PERSONALES"]
[{"$nulls":3},"SERVICIOS BÁSICOS"]
[null,"0044","221201","Servicios telefónico de larga distancia"]
[null,"0044","221301","Teléfono local"]
[null,"0044",null,"Telefax y correo"]
[null,"0044","221501","Servicio de internet y televisión por cable"]
[null,"0044","221601","Energía eléctrica"]
[null,null,"221701","Agua",{"v":10000,"d":"10,000.00"}]
[{"$nulls":3},"Organización de eventos y festividades"]
[{"$nulls":3},"PUBLICIDAD, IMPRESIÓN Y ENCUADERNACIÓN"]
[null,"0044","222101","Publicidad y propaganda"]
[null,"0044","222201","Impresión y encuadernación"]
[{"$nulls":3}," "]
[null,"0044","223101","Viáticos dentro del país",{"v":4100,"d":"4,100.00"}]
[null,"0044",null,"Viáticos fuera del país"]
[{"$nulls":3},"TRANSPORTE Y ALMACENAJES"]
[null,"0044","224101","Pasajes"]
[null,"0044","224401","Peajes"]
[{"$nulls":3},"Almacenaje"]
[null,null,"224201","Fletes",{"v":600,"d":"600.00"}]
[{"$nulls":3},"ALQUILERES Y RENTA",{"v":7788,"d":"7,788.00"}]
[null,"0044",null,"Alquiler de equipo de oficina y muebles"]
[null,"0044","2.2.5.4.01","Alquileres de equipos de transporte, tracción y elevación"]
[null,"0044","225101","Alquilleres y rentas de edificios y locales"]
[null,null,"225301","Alquiler de equipo educacional"]
[{"$nulls":3},"Alquiler de equipo para computación"]
[null,null,"225801","Otros alquileres"]
[{"$nulls":3},"SEGUROS"]
[null,"0044",null,"Seguro de bienes muebles"]
[null,"0044","2.2.6.3.01","Seguro de personas"]
[{"$nulls":3},"CONSERV., REPS. MENORES E INSTALACIONES TEMP."]
[null,null,"226201","Seguros de bienes"]
[null,null,"227101","Obras menores en edificaciones"]
[null,null,"227202","Mant y rep equipos "]
[null,null,"227203","Mant y rep equipo transporte"]
[null,null,"227205","Mant y reparac eq oficina y muebles"]
[null,"0044","227204","Mantenim y reparación eq sanitarios y laboratorios"]
[{"$nulls":3},"Mantenimiento y reparación de obras civiles en instalaciones varias"]
[null,"0044","2.2.7.1.07","Servicios de pintura y derivados con fin de higiene y embellecimiento"]
[null,"0044",null,"Reparaciones de obras menores"]
[null,"0044",null,"Mant. y rep. De equipo de oficina y muebles"]
[null,null,"2.2.7.1.0.6","Instalaciones eléctricas"]
[null,"0044","2.2.7.2.04","Mantenimiento y reparación de equipos sanitarios y de laboratorio"]
[null,"0044","227206","Mant. y rep. equipo transporte, tracción y elevación"]
[{"$nulls":3},"Mantenimiento y reparación de muebles y equipos de oficina"]
[{"$nulls":3},"Mantenimiento y reparación de equipo para computación"]
[{"$nulls":3},"Equipo de telecomunicaciones y señalamiento"]
[{"$nulls":3},"OTROS SERVICIOS NO PERSONALES "]
[null,"0044","228201","Comisiones y gastos bancarios",{"v":1984.56,"d":"1,984.56"}]
[null,"0044","2.2.8.3.01","Servicios sanitarios médicos y veterinarios "]
[null,"0044","228501","Fumigación"]
[null,"0044","Activos prepagados","Insecticidas, Fumigantes y Otros"]
[null,"0044","228503","Limpieza e higiene"]
[null,"0044",null,"Eventos generales"]
[null,"0044","228702","Servicios jurídicos"]
[{"$nulls":3},"Gastos judiciales"]
[null,"0044",228704,"Servicios de capacitación"]
[null,"0044","228706","Otros servicios técnicos profesionales"]
[null,"0044","228801","Impuestos "]
[null,"0044",null,"Recolección de residuos sólidos"]
[null,"0044","228705","Servicios de informática y sistemas computarizados"]
[{"$nulls":3},"MATERIALES Y SUMINISTROS"]
[{"$nulls":3},"ALIMENTOS Y PRODUCTOS AGROFORESTALES"]
[null,"0039",229201,"Servicios alimentacion"]
[null,"0041","2.3.1.3.03","Productos forestales"]
[{"$nulls":3},"TEXTILES Y VESTUARIOS"]
[null,"0041","2.3.2.1.01","Hilados y telas"]
[null,null,231101,"Alimentos y bebidas para personas",{"v":108390.26,"d":"108,390.26"}]
[null,null,231401,"Prod de madera y corcho"]
[null,"0041",232201,"Acabados textiles"]
[null,"0039",232301,"Prendas de vestir"]
[{"$nulls":3},"PRODUCTOS DE PAPEL, CARTÓN E IMPRESO"]
[null,"0041",233101,"Papel de escritorio",{"v":39895,"d":"39,895.00"}]
[null,"0041",233201,"Productos de papel y cartón",{"v":54021.6,"d":"54,021.60"}]
[null,"0041",233301,"Productos de artes gráficas"]
[null,"0039",234101,"Productos medicinales para uso humano",{"v":101103.5,"d":"101,103.50"}]
[{"$nulls":3},"PRODUCTOS DE CUERO, CAUCHO Y PLÁSTICOS"]
[null,"0041",235201,"Artículos de cuero"]
[null,"0041",233401,"Libros, revistas y periódicos"]
[null,"0041",235301,"Llantas y neumáticos"]
[null,"0041",235401,"Artículos de caucho"]
[null,"0041","2.3.5.5.01","Artículos de plástico",{"v":50431.25,"d":"50,431.25"}]
[{"$nulls":3},"PRODUCTOS DE MINERALES, METÁLICOS Y NO METÁLICOS"]
[null,"0041",null,"Metales y piedras preciosas"]
[null,"0041","2.3.6.1.01","Productos de cemento"]
[null,null,"2.3.6.2.0.3","Productos de porcelana"]
[null,"0041","2.3.6.1.04","Productos de yeso"]
[null,"0041","2.3.6.2.01","Productos de vidrio"]
[null,"0041","2.3.6.3.01","Productos ferrosos"]
[null,"0041","2.3.6.3.02","Productos no ferrosos"]
[null,null,235401,"Productos de caucho"]
[null,null,235501,"Articulos de plastico"]
[null,null,236,"Productos minerales, metalicos"]
[null,"0041",236304,"Herramientas menores"]
[null,"0041",{"$error":"#N/A"},"Productos de hojalata"]
[null,"0041","2.3.6.3.06","Accesorios de metal"]
[null,"0041","2.3.6.4.0.4","Piedra, arcilla y arena"]
[{"$nulls":3},"COMBUSTIBLES, LUBRICANTES, PRODUCTOS QUÍMICOS Y CONEXOS"]
[null,null,237104,"Gas GLP",{"v":19227,"d":"19,227.00"}]
[null,"0041",2371,"Combustibles y lubricantes"]
[null,"0041",237206,"Pinturas, lacas y barnices"]
[null,"0041",{"$error":"#N/A"},"Aceites y grasas"]
[null,"0041",null,"Lubricantes"]
[null,"0041",237203,"Productos químicos de lab y de uso personal",{"v":183564.37,"d":"183,564.37"}]
[null,"0041",237205,"Insecticidas, fumigantes y otros"]
[null,"0041",237206,"Pinturas, lacas, barnices, diluyentes y absorbentes para pinturas"]
[{"$nulls":3},"PRODUCTOS Y ÚTILES VARIOS"]
[null,"0041",239101,"Material para limpieza",{"v":31167.88,"d":"31,167.88"}]
[null,"0041",239201,"Útiles de escritorio, oficina e informática ",{"v":43905,"d":"43,905.00"}]
[null,"0041",239301,"Útiles menores médico quirurgicos",{"v":210762.16,"d":"210,762.16"}]
[null,null,239501,"Utiles de cocina y comedor",{"v":1810,"d":"1,810.00"}]
[null,"0041",239301,"Utiles menores méd quirurgicos y de laboratorio"]
[null,"0041",239601,"Productos eléctricos y afines",{"v":1150,"d":"1,150.00"}]
[null,"0041",239801,"Otros repuestos y accesorios menores"]
[null,"0041",239901,"Productos y Utiles Varios  n.i.p"]
[null,"0039",239902,"Bonos para útiles diversos"]
[null,"0041",236407,"Minerales"]
[null,"0041",239501,"Útiles de cocina y comedor"]
[]
[null,"0044",null,"Otros"]
[{"$nulls":3},"TRANSFERENCIAS CORRIENTES"]
[null,"0040",241202,"Ayudas y donaciones ocacionales a hogares y personas"]
[null,"0039",241401,"Becas nacionales"]
[null,"0039",241402,"Becas extranjeras"]
[null,null,263101,"Equipo medico y de laboratori"]
[null,null,263201,"Instrumental medico y de laboratorio"]
[null,"0040",null,"Transf P/Disminucion Deuda Publica y Otras"]
[null,"0042",241601,"Transferencias corrientes a asoc sin fines de lucro"]
[{"$nulls":3},"Transferencias corrientes "]
[null,"0040",null,"Anticipos Financieros"]
[null,"0042",null,"Gasto de depreciación"]
[null,"0042",null,"Gasto de amortización"]
[null,"0044",null,"Pérdida por retiro"]
[{"$nulls":3},"Gasto de amortización"]
[{"$nulls":3},"Otros Gastos",{"v":180436.03,"d":"180,436.03"}]
[null,null,"228201","Comisiones y gastos bancarios"]
[{"$nulls":3},"Balance",{"$f":"SUM(E7:E178)","v":{"v":5260468.28,"d":"5,260,468.28"}},{"$f":"SUM(F7:F178)","v":{"v":5260468.28,"d":"5,260,468.28"}},{"$nulls":3},{"$f":"SUM(J23:J178)","v":0},{"$f":"E179-F179","v":{"v":0,"d":"0.00"}}]
[]
[]
[{"$nulls":3}," "]
{"$rows_empty":63}
[{"$nulls":22},{"$f":"+R245-S245","v":0}]

{"sheet":"ESF SNS","index":1,"n_rows":67,"n_cols":7,"rows_kept":67,"merged":[[0,2,0,6],[1,2,1,6],[2,2,2,6],[3,2,3,6]]}
[null,null,"HOSPITAL   DR. ROMAN BRACHE "]
[null,null,"Estados Financieros "]
[null,null,"Al  30 JUNIO    DEL  2025"]
[null,null,"Valores en RD$"]
[]
[]
[]
["Mapeo",null,"Activos"]
[null,null,"Activos corrientes"]
["0001",null,null,"Efectivo y equivalentes de efectivo (Nota 1)",null,{"v":450022.04,"d":"$450,022.04"}]
["0004",null,null,"Cuenta por cobrar  (Notas 2)",null,{"v":1596451.38,"d":"$1,596,451.38"}]
["0005",null,null,"Inventarios (Nota 3)",null,{"v":1947528.25,"d":"$1,947,528.25"}]
["0006",null,null,"Pagos anticipados (Nota 4)"]
[null,null,"Total activos corrientes",null,null,{"$f":"SUM(F10:F13)","v":{"v":3994001.67,"d":"$3,994,001.67"}},{"$f":"SUM(G9:G13)","v":0}]
[]
[null,null,"Activos no corrientes"]
["0008",null,null,"Cuentas por cobrar a largo plazo (Nota 5)"]
["0012",null,null,"Mobiliarios y equipos neto (Nota 6)",null,{"v":216130,"d":"$216,130.00"}]
[{"$nulls":3},"Equipo de Transporte (Nota 7)"]
[{"$nulls":3},"Terrenos (Nota 8)"]
[null,null,"Total activos no corrientes",{"$nulls":3},{"$f":"SUM(G17:G20)","v":0}]
[]
[null,null,"Total activos",null,null,{"$f":"SUM(F14:F22)","v":{"v":4210131.67,"d":"$4,210,131.67"}},{"$f":"SUM(G21,G14)","v":0}]
[{"$nulls":3}," "]
[null,null,"Pasivos"]
[null,null,"Pasivos corrientes"]
["0016",null,null,"Cuentas por pagar suplidores  (Nota 9 )",null,{"v":1442689.87,"d":"$1,442,689.87"}]
["0019"]
["0021",null,null,"Beneficios acomulados por pagar a empleados  (Nota 10)",null,{"v":383919.19,"d":"$383,919.19"}]
[null,null,"Total pasivos corrientes",null,null,{"$f":"SUM(F27:F29)","v":{"v":1826609.06,"d":"$1,826,609.06"}},{"$f":"SUM(G27:G29)","v":0}]
[]
[null,null,"Pasivos no corrientes"]
["0024",null,null,"Cuentas por pagar a largo plazo ()"]
[null,null,"Total pasivos no corrientes"]
[null,null,"Total pasivos ",null,null,{"$f":"SUM(F30:F34)","v":{"v":1826609.06,"d":"$1,826,609.06"}},{"$f":"SUM(G30,G34)","v":0}]
[]
[null,null,"Activos Netos/Patrimonio (Nota 13)"]
["0030",null,null,"Patrimonio",null,{"v":556913.55,"d":"$556,913.55"}]
["0032",null,null,"Resultados positivos (ahorro) / negativo (desahorro)",null,{"v":1826609.06,"d":"1,826,609.06"}]
[null,null,"Total activos netos/patrimonio",null,null,{"v":2383522.61,"d":"$2,383,522.61"}]
[]
[null,null,"Total pasivos y activos netos/patrimonio",null,null,{"v":4210131.67,"d":"$4,210,131.67"},{"$f":"+G35+G40","v":0}]
[]
[]
[]
[null,null,"  ","                                                     Licda. Margarita Taveras"]
[{"$nulls":3},"                                                         Enc. Contabilidad"]
{"$rows_empty":7}
[{"$nulls":3},"FORMATO ESTADOS FINANCIEROS "]
[]
[{"$nulls":3},"ESTADOS FINANCIEROS"]
[{"$nulls":3},"INFORMES O ESTADOS CONTABLES: Son el reflejo de la contabilidad de una empresa y muestran la estructura económica de la misma. En los Estados Financieros se plasman las actividades económicas que se realizan en la empresa durante un determinado tiempo."]
[]
[{"$nulls":3},"ESTAN COMPUESTOS POR:"]
[{"$nulls":3},"-Activos"]
[{"$nulls":3},"-Pasivos"]
[{"$nulls":3},"-Capital"]
[]
[{"$nulls":3},"ACTIVOS: Son todos las propiedades que posee una empresa.                                                                       "]
[{"$nulls":3},"PASIVOS: Deudas y compromisos que posee la empresa.                                                                               "]
[{"$nulls":3},"CAPITAL O PATRIMONIO: Aportaciones realizadas y beneficios que ha generado la empresa."]

{"sheet":"ERF SRS","index":2,"n_rows":43,"n_cols":8,"rows_kept":43,"merged":[[1,2,1,7],[2,2,2,7],[3,2,3,7],[4,2,4,7],[34,2,34,7]]}
[]
[null,null,"HOSPITAL  DR. ROMAN BRACHE "]
[null,null,"Estado de Rendimiento Financiero"]
[null,null,"Del ejercicio terminado al 30 JUNIO       del 2025"]
[null,null,"(Valores en RD$)"]
[]
[{"$nulls":7},{"$f":"+[1]ESF!H7","v":2016}]
[null,null,"Ingresos (Nota 17)"]
["0035",null,null,"Impuestos "]
["0036",null,null,"Ingresos por transacciones con contraprestación"]
["0037",null,null,"Transferencias",null,{"v":1444534.71,"d":"1,444,534.71"}]
["0038",null,null,"Recargos, multas y otros ingresos",null,{"v":1596451.38,"d":"1,596,451.38"}]
[null,null,"Total ingresos",null,null,{"$f":"SUM(F10:F12)","v":{"v":3040986.09,"d":"3,040,986.09"}},null,{"$f":"SUM(H9:H12)","v":0}]
[{"$nulls":3}," "]
[null,null,"Gastos (Notas 18, 19, 20, 21 y 22)"]
["0039",null,null,"Sueldos, salarios y beneficios a empleados"]
["0040",null,null,"Subvenciones y otros pagos por transferencias"]
["0041",null,null,"Suministros y materiales para consumo",null,{"v":1050306.61,"d":"$1,050,306.61"}]
["0042",null,null,"Gasto de depreciación y amortización"]
["0043",null,null,"Deterioro del valor de propiedad, planta y equipo"]
["0044",null,null,"Otros gastos"]
["0045",null,null,"Gastos financieros",{"$nulls":3},{"$f":"SUMIF([1]BC!B:B,[1]ERF!A22,[1]BC!G:G)","v":{"$error":"#VALUE!"}}]
[null,null,"Total gastos",null,null,{"$f":"SUM(F16:F22)","v":{"v":1050306.61,"d":"1,050,306.61"}},null,{"$f":"SUM(H16:H22)","v":{"$error":"#VALUE!"}}]
[]
[]
[]
[null,null,"Resultados positivos (ahorro) / negativo (desahorro)",null,null,{"$f":"+F13-F23","v":{"v":1990679.48,"d":"1,990,679.48"}},null,{"$f":"+H13-H23+#REF!+#REF!","v":{"$error":"#VALUE!"}}]
[]
[null,null,"Atribuible a:"]
["0048",null,null,"Propietarios de la entidad controladora",null,0,null,0]
["0049",null,null,"Intereses minoritarios ",null,0,null,0]
[{"$nulls":5},{"$f":"SUM(F30:F31)","v":0},null,{"$f":"SUM(H30:H31)","v":0}]
[]
[]
[]
[{"$nulls":3},"ESTADO DE RESULTADO"]
[{"$nulls":3},"Muestra si ha habido beneficios o pérdidas."]
[]
[{"$nulls":3},"SE DETERMINA DE LA SIGUIENTE MANERA"]
[]
[{"$nulls":3},"Total de Ingresos"]
[null,null,"menos","total de Gastos"]
[null,null,"igual","Resultados positivos (ahorro) / negativo (desahorro)"]

{"sheet":"Efectivo","index":3,"n_rows":29,"n_cols":3,"rows_kept":29,"merged":[[0,1,0,2],[1,1,1,2],[2,1,2,2],[3,1,3,2],[5,0,7,0],[5,1,7,1],[5,2,7,2]]}
[null,"HOSPITAL DR. ROMAN BRACHE "]
[null,"Nota No. 1: Efectivo Caja y Bancos "]
[null,"Del ejercicio terminado al 30 DE JUNIO       del 2025"]
[null,"(Valores en RD$)"]
[]
["# Cta.","Nombre de cuenta","Monto"]
[]
[]
[null,"Caja Chica"]
[null,"Cta Seguridad Social"]
[null,"Cta  Venta de servicio ",{"v":449911.61,"d":"449,911.61"}]
[null,"Cta Operativa"]
[null,"Cta Anticipo financiero ",110.43]
[null,"Total balance cuentas  bancarias del Reservas"]
[]
["# Cta.","Tesoreria Nacional","Monto"]
[9995028000]
[9995028001,null,{"$f":"SUM(C15)","v":0}]
[]
[]
[2110003000]
[null,null,{"$f":"SUM(C18)","v":0}]
[100198000,null,{"$f":"SUM(C21)","v":0}]
[null,null,{"$f":"SUM(C22)","v":0}]
[null,"Total efectivo y equivalentes de efectivo",{"$f":"SUM(C11:C13)","v":{"v":450022.04,"d":"450,022.04"}}]
[]
[]
[]
[null,"EFECTIVO: Es un elemento de balance y forma parte del activo (circulante o corriente)."]

{"sheet":"Cuentas por Cobrar","index":4,"n_rows":19,"n_cols":2,"rows_kept":19,"merged":[[0,0,0,1],[1,0,1,1],[2,0,2,1],[3,0,3,1],[5,0,7,0],[5,1,7,1]]}
["HOSPITAL DR. ROMAN BRACHE "]
["Nota No. 2: Cuentas Por Cobrar"]
["DEL EJERCICIO TERMINADO AL 30 DE JUNIO   2025"]
["(Valores en RD$)"]
[]
["Detalle","Monto"]
[]
[]
["Cuentas Por Cobrar  Colaboradores",{"v":0,"d":"0.00"}]
["Otras  Cuentas Por Cobrar (Retencion IR-3)",{"v":0,"d":"0.00"}]
["Cuentas por Cobrar "]
["Cuentas por Cobrar Ventas de Servicios "]
["Cuentas por Cobrar Senasa ",{"v":1596451.38,"d":"1,596,451.38"}]
["Anticipos financieros"]
["Total Cuentas Por Cobrar",{"$f":"SUM(B9:B14)","v":{"v":1596451.38,"d":"1,596,451.38"}}]
[]
[]
[]
["CUENTA POR COBRAR: Son derechos de cobros que posee una entidad sobre tercero hasta una fecha determinada, forma parte de los activos más importante, ya que es el activo más liquido después del efectivo."]

{"sheet":"Inventario","index":5,"n_rows":23,"n_cols":2,"rows_kept":23,"merged":[[0,0,0,1],[1,0,1,1],[2,0,2,1],[3,0,3,1],[4,0,6,0],[4,1,6,1]]}
["HOSPITAL DR. ROMAN BRACHE "]
["Nota No. 3:  Inventarios"]
["DEL EJERCICIO TERMINADO AL 30 DE JUNIO     2025 "]
["(Valores en RD$)"]
["Descripción","Monto"]
[]
[]
["Inventario Medicamentos",{"v":1611606.42,"d":"1,611,606.42"}]
["Inventario Insumos laboratorios",{"v":54142.14,"d":"54,142.14"}]
["Inventario Insumos odontologicos",{"v":196959.69,"d":"196,959.69"}]
["Equipos medicos"]
["Equipos odontologicos",{"v":0,"d":"0.00"}]
["Equipos informaticos",{"v":0,"d":"0.00"}]
["Material gastable de oficina, impresos, toner",{"v":84820,"d":"84,820.00"}]
["Ferreteria/Refrigeracion",{"v":0,"d":"0.00"}]
["Hogar/Higiene",{"v":0,"d":"0.00"}]
["Componentes vehiculos",{"v":0,"d":"0.00"}]
["Textiles",{"v":0,"d":"0.00"}]
[]
["Total Inventario",{"$f":"SUM(B8:B19)","v":{"v":1947528.25,"d":"1,947,528.25"}}]
[]
[]
["INVENTARIOS: Es el conjunto de bienes en existencia destinado a realizar una operación, debe aparecer contablemente en los activos (como activos circulantes o corrientes)."]

{"sheet":"Mobiliario Eq. Ofc.","index":6,"n_rows":40,"n_cols":3,"rows_kept":40,"merged":[[0,0,0,1],[1,0,1,1],[2,0,2,1],[3,0,3,1],[5,0,6,0],[5,1,6,1],[25,0,26,0]]}
["HOSPITAL  DR. ROMAN BAUTISTA BRACHE "]
["Nota No. 5: Mobiliarios y Equipos Transporte"]
["AL 30 JUNIO  2025"]
["(Valores en RD$)"]
[]
["Mobiliarios y Equipos de Oficinas","Monto"]
[]
["Costos:"]
["Saldos al inicio",{"v":216130,"d":"216,130.00"}]
["Adiciones"]
["Retiros"]
["Saldo al final",{"v":216130,"d":"216,130.00"}]
[]
[]
[]
[]
["Equipos de Transporte y Otros","HDRBB"]
["Costos:"]
["Saldos al inicio"]
["Adiciones"]
["Retiros"]
["Saldo al final"]
[]
[]
[]
["Depreciación acumulada:","Sede Central"]
[null,"SNS"," "]
["Saldos al inicio Mob. Y Eq."]
["Saldos al inicio de Equipo de Trans."]
["Cargo del período Mob. Y Eq."]
["Cargo del período Equipo de Trans."]
["Retiros Mob. Y Equipo",0]
["Retiros Equipo de Trans."]
["Saldo al final"]
[]
[]
["Mobiliarios y equipos, neto"]
[]
[]
["MOBILIARIOS Y EQUIPOS: Son todos los muebles y enseres que posee una entidad para que el espacio de trabajo sea  funcional."]

{"sheet":"CXP Corto plazo","index":7,"n_rows":20,"n_cols":2,"rows_kept":20,"merged":[[0,0,0,1],[1,0,1,1],[2,0,2,1],[3,0,3,1],[6,0,8,0],[6,1,8,1]]}
["HOSPITAL DR. ROMAN RACHE "]
["Nota No. 9: Cuentas por Pagar a Corto Plazo"]
["DEL EJERCICIO TERMINADO AL 30 DE JUNIO 2025"]
["(Valores en RD$)"]
[]
[]
["Detalle","Monto"]
[]
[]
["Cuentas por Pagar Suplidores",{"v":1442689.87,"d":"1,442,689.87"}]
["Cuentas por Pagar Alquileres"]
["Total Cuentas Por Pagar a Corto Plazo",{"$f":"SUM(B10:B11)","v":{"v":1442689.87,"d":"1,442,689.87"}}]
[]
[]
["CUENTAS POR PAGAR: Son todas aquellas deudas que una entidad contrae con los diferentes proveedores, producto  de haber adquirido bienes y servicios."]
[]
["SE DIVIDEN EN:"]
["CORTO PLAZO: Son aquellas deudas que deberán pagarse en un plazo de un año o menos."]
[]
["LARGO PLAZO: Es la que su plazo se realizara de manera posterior a un año."]

{"sheet":"Pagos anticipados","index":8,"n_rows":21,"n_cols":11,"rows_kept":21,"merged":[[0,0,0,1],[1,0,1,1],[2,0,2,1],[3,0,3,1],[6,0,8,0],[6,1,8,1]]}
["HOSPITAL DR. ROMAN BAUTISTA BRACHE ",{"$nulls":8},"EJEMPLO"]
["Nota No. 4: Pagos anticipados"]
["DEL EJERCICIO TERMINADO AL 30 DE JUNIO   2024 ",{"$nulls":7},"Seguros","Pagos","Balance"]
["(Valores en RD$)",{"$nulls":7},{"v":12000,"d":"12,000.00"}]
[{"$nulls":8},"enero",{"v":0,"d":"0.00"},{"v":12000,"d":"12,000.00"}]
[{"$nulls":8},"febrero",{"v":1000,"d":"1,000.00"},{"$f":"K5-J6","v":{"v":11000,"d":"11,000.00"}}]
["Detalle","Monto",{"$nulls":6},"marzo",{"v":1000,"d":"1,000.00"},{"v":10000,"d":"10,000.00"}]
[{"$nulls":8},"abril",{"v":1000,"d":"1,000.00"},{"v":9000,"d":"9,000.00"}]
[{"$nulls":8},"mayo",{"v":1000,"d":"1,000.00"},{"v":8000,"d":"8,000.00"}]
["Alquileres",{"$nulls":7},"junio",{"v":1000,"d":"1,000.00"},{"v":7000,"d":"7,000.00"}]
["Seguros vehiculos",{"$nulls":7},"julio",{"v":1000,"d":"1,000.00"},{"v":6000,"d":"6,000.00"}]
["Total Cuentas Por Pagar a Corto Plazo",{"$nulls":7},"agosto",{"v":1000,"d":"1,000.00"},{"v":5000,"d":"5,000.00"}]
[{"$nulls":8},"septbre",{"v":1000,"d":"1,000.00"},{"v":4000,"d":"4,000.00"}]
[{"$nulls":8},"octubre ",{"v":1000,"d":"1,000.00"},{"v":3000,"d":"3,000.00"}]
[{"$nulls":8},"noviembre ",{"v":1000,"d":"1,000.00"},{"v":2000,"d":"2,000.00"}]
["PAGOS ANTICIPADOS: Son aquellos pagos que se contabiliza en el ejercicio pero que realmente pertenecen a otro posterior.",{"$nulls":7},"diciembre",{"v":1000,"d":"1,000.00"},{"$f":"K15-J16","v":{"v":1000,"d":"1,000.00"}}]
["Ejemplo:"]
["Pagos de seguros"]
["Pagos de alquileres por adelantado"]
["Fianzas"]
["Etc."]

{"sheet":"Retenciones y Acum.","index":9,"n_rows":25,"n_cols":2,"rows_kept":25,"merged":[[0,0,0,1],[1,0,1,1],[2,0,2,1],[3,0,3,1]]}
["HOSPITAL DR. ROMAN BAUTISTA BRACHE "]
["Nota No.10:  Retenciones y Acumulaciones"]
["DEL EJERCICIO TERMINADO AL 30 DE JUNIO   2025"]
["(Valores en RD$)"]
[]
[]
["Detalle","Monto"]
["Retenciones anteriores"]
["Retencion ISR 5%"]
["Retenciones ISR 10%"]
["Retencion IR-3"]
["Retencion ITBIS "]
["Infotep"]
["Retencion Seguridad Social"]
["Retencion de Supervision de Obras"]
["Retencion ley 6-86 Pensiones"]
["Otras retenciones"]
["Total Retenciones y Acumulaciones "]
[]
[]
[]
["RETENCIONES Y ACOMULACIONES:"]
["Son deducciones efectuadas por agente de retención a los pagos de salarios y otros ingresos en una entidad determinada por leyes, reglamentos y normas tributaria."]
["ACOMULACIONES:"]
["Son todas aquellas obligaciones de la entidad que no se han pagado en la fecha establecida"]

{"sheet":"Benef. Empl x p Corto Plazo","index":10,"n_rows":23,"n_cols":2,"rows_kept":23,"merged":[[0,0,0,1],[1,0,1,1],[2,0,2,1],[3,0,3,1],[6,0,8,0],[6,1,8,1]]}
["HOSPITAL DR. ROMAN BAUTISTA BRACHE "]
["Nota No. 10: Beneficios a Empleados por Pagar a Corto Plazo"]
["DEL EJERCICIO TERMINADO AL 30 DE JUNIO  2025"]
["(Valores en RD$)"]
[]
[]
["Detalle","Monto"]
[]
[]
["Sueldos Por Pagar"]
["Viaticos Empleados "]
["Incentivos Senasa *",{"v":383919.19,"d":"$383,919.19"}]
["Incentivos"]
["Total Beneficios a Empleados por Pagar a Corto Plazo",{"$f":"SUM(B10:B13)","v":{"v":383919.19,"d":"383,919.19"}}]
[]
[]
[]
["BENEFICIOS A EMPLEADOS POR PAGAR A CORTO PLAZO:"]
["Son las diferentes indemnizaciones adquirida por los empleados y que deben ser liquidadas en el término de 12 meses."]
["Ejemplo:"]
["Sueldos"]
["Viáticos"]
["Incentivos"]

{"sheet":"CXP Largo Plazo","index":11,"n_rows":16,"n_cols":2,"rows_kept":16,"merged":[[0,0,0,1],[1,0,1,1],[2,0,2,1],[3,0,3,1],[4,0,4,1],[7,0,9,0],[7,1,9,1],[8,4,9,4],[8,5,9,5]]}
["Servicio  Regional de Salud"]
["Nota No.12: Cuentas por Pagar Largo Plazo"]
[{"$f":"Efectivo!B3","v":"Del ejercicio terminado al 30 DE JUNIO       del 2025"}]
["(Valores en RD$)"]
["HOSPITAL DR. ROMAN AUTISTA BRACHE "]
[]
[]
["Detalle","Monto"]
[]
[]
["Cuentas por Pagar Alquileres Largo Plazo"]
["Total Cuentas Por Pagar a Largo Plazo"]
[]
[]
[]
["LARGO PLAZO: son aquellas deudas que su pago  se realizara de manera posterior a un año."]

{"sheet":"Patrimonio","index":12,"n_rows":15,"n_cols":2,"rows_kept":15,"merged":[[0,0,0,1],[1,0,1,1],[2,0,2,1],[3,0,3,1],[5,0,7,0],[5,1,7,1]]}
["HOSPITAL DR. ROMAN BRACHE "]
["Nota No.13: Patrimonio "]
[{"$f":"Efectivo!B3","v":"Del ejercicio terminado al 30 DE JUNIO       del 2025"}]
["(Valores en RD$)"]
[]
["Detalle","Monto"]
[]
[]
["Capital                                                                      ",{"v":556913.55,"d":"$556,913.55"}]
["Resultados positivos (ahorro)/negativo (desahorro)",{"v":1826609.06,"d":"1,826,609.06"}]
["Total Patrimonio Neto",{"$f":"SUM(B9:B10)","v":{"v":2383522.61,"d":"2,383,522.61"}}]
[]
[]
["PATRIMONIO"]
["Es el conjunto de bienes y derechos, cargas y obligaciones que pertenecen a una persona física o jurídica."]

{"sheet":"Ingresos","index":13,"n_rows":30,"n_cols":2,"rows_kept":30,"merged":[[0,0,0,1],[1,0,1,1],[2,0,2,1],[3,0,3,1],[5,0,6,0],[5,1,6,1],[18,3,19,3]]}
["HOSPITAL DR. ROMAN BRACHE "]
["Nota No.17: Ingresos"]
[{"$f":"Efectivo!B3","v":"Del ejercicio terminado al 30 DE JUNIO       del 2025"}]
["(Valores en RD$)"]
[]
["Ingresos con Contraprestacion de Servicios","Monto"]
[]
["Venta de Servicios",{"v":1073879.41,"d":"1,073,879.41"}]
["Sub-Total"]
[]
["Ingresos sin  Contraprestacion de Servicios"]
["Otros Ingresos",{"v":21250,"d":"21,250.00"}]
["Operaciones XXX"]
["SENASA ",{"v":1596451.38,"d":"1,596,451.38"}]
["Fondo Operativo ",{"v":349405.3,"d":"349,405.30"}]
["ANTICIPO FINANCIERO "]
["XXXX"]
["XXX"]
["Ayudas y Donaciones"]
["XXXX"]
["Sub- Cuenta Disponibilidad Direccion Central Servicio Nacional de Salud"]
["Sub-Total"]
["Total",{"$f":"SUM(B8:B22)","v":{"v":3040986.09,"d":"3,040,986.09"}}]
[]
[]
[]
["INGRESOS"]
["Son cantidades monetarias que recibe una empresa por la venta de bienes o servicios."]
["Pueden ser:"]
["Fijos y variables."]

{"sheet":"Total Gasto","index":14,"n_rows":107,"n_cols":2,"rows_kept":107,"merged":[[0,0,0,1],[1,0,1,1],[1,3,2,3],[2,0,2,1],[3,0,3,1],[4,0,4,1]]}
["Servicio Nacional de Salud"]
["HOSPITAL DR. ROMAN BAUTISTA BRACHE "]
["Notas No.18 Gastos Generales"]
["DEL EJERCICIO TERMINADO AL 30 DE JUNIO   DEL 2025"]
["(Valores en RD$)"]
["DETALLES","MONTO"]
["Gastos de Consumo"]
["Remuneraciones"]
["Sueldos personal fijo"]
["empleados temporales "]
["SUELDO NO. 13"]
["Incentivo por rendimiento individual"]
["Compensacion servicios seguridad"]
["Compensaciones Directas al Personal"]
["Compensacion por resultados"]
["TELEFONO LOCAL"]
["FLETE",{"v":600,"d":"600.00"}]
["Dietas y Gastos de Representacion"]
["Prestaciones y Bonificaciones"]
["Contribuciones al Seguro de salud"]
["Contribuciones al seguro de pensiones"]
["Contribuciones al seguro de Riesgo Laboral"]
["Otros Servicios Personales"]
["Bienes y Servicios"]
["Servicios no Personales"]
["SERVICIO JURIDICO"]
["Servicios Basicos"]
["Publicidad, Proganda"]
["Viaticos Dentro y Fuera del Pais",{"v":4100,"d":"4,100.00"}]
["Transporte y Almacenaje"]
["Alquileres de trasnporte",{"v":7788,"d":"7,788.00"}]
["Otros alquileres"]
["agua",{"v":10000,"d":"10,000.00"}]
["Conservacion, Reparac Menores y Construcciones Temporales"]
["Mant y rep equipos "]
["Mant y rep de equipo sanitarios y de laboratorio"]
["Otros Servicios No Personales"]
["Comisiones y gastos bancarios",{"v":1984.56,"d":"1,984.56"}]
["Serv tecnicos profesionales"]
["SERVICIOS DE PINTURA Y DERIVADOS CON FINES DE HIJIENE "]
["Gas glp"]
[" alimentacion"]
["Materiales y Suministros"]
["Alimentos y bebidas p/personas",{"v":108390.26,"d":"108,390.26"}]
["EQUIPO DE LABORATORIO"]
["PAPEL DE ESCRITORIO",{"v":39895,"d":"39,895.00"}]
["Productos de Papel, Carton e Impresos",{"v":54021.6,"d":"54,021.60"}]
["Productos medicinales para uso humano",{"v":101103.5,"d":"101,103.50"}]
["PLASTICO",{"v":50431.25,"d":"50,431.25"}]
["PRODUCTO DE PORCELANA"]
["UTILES DE COCINA",{"v":1810,"d":"1,810.00"}]
["Productos de Minerales Metalicos y no Metalicos"]
["Productos y Utiles Varios"]
["Equipo medico y de laboratorio"]
["Instrumental medico y laboratorio"]
["Bienes muebles e inmuebles"]
["Direccion general de Contabilidad Gubernamental"]
["Plan de Cuentas General Para el Sector Publico"]
["Gastos por Cuentas Incobrables"]
["Perdidas en Rentas por Recaudar"]
["Perdidas en Cuentas Por Cobrar"]
["Gastos Financieros"]
["producto de artes grafica"]
["ACABADO TEXTILES"]
["Comisiones de la Deuda Interna"]
["Comisiones de la Deuda Externa"]
["Perdida en Operaciones Financieras"]
["Transferencias y Donaciones Corrientes"]
["PRODUCTO ELECTRICO",{"v":1150,"d":"1,150.00"}]
["Prestaciones de la Seguridad Social"]
["Transferencias al Sector Privado"]
["Transferencias al Sector Publico"]
["Transferencias al Sector Externo"]
["Alquiler de equipos de transporte, traccion y elevacion "]
["Mantenimiento y reparación de equipos laboratorio "]
["producto de artes grafica"]
["servicio de pintura y sus derivados con fines de higiene  y embe."]
["PRODUCTO DE PAPEL Y CARTON"]
["Instalaciones eelctrica"]
["IMPRESIONES Y ENCUADERNACION"]
["accesorio de metal"]
["Combustibles, Lubricantes."]
["Gas glp",{"v":19227,"d":"19,227.00"}]
["OTROS ACCESORIOS"]
["materiales de limpieza",{"v":31167.88,"d":"31,167.88"}]
["Alimentos y bebidas p/personas"]
["EQUIPOS MEDICO Y LABOARATORIO "]
["PRODUCTO ELECTRICO"]
["PRODUCTO MEDICINALES PARA USO HUMANO"]
["insecticidas, fumigacion y otros"]
["servicio de pintura y sus derivados con fines de higiene  y embe."]
["productos quimico de laboratorio y de uso personal ",{"v":183564.37,"d":"183,564.37"}]
["pintura, lacas, barnices, diluyentes y absorbentes para pintura"]
["PAPEL DE ESCRITORIO"]
["Utiles de escritorio, oficna e informatica",{"v":43905,"d":"43,905.00"}]
["Utiles menores medicos quirurgicos",{"v":210732.16,"d":"210,732.16"}]
["Otros gastos ",{"v":180436.03,"d":"180,436.03"}]
["Mantenimiento y reparación de equipos sanitario y laboratorio"]
["Total Gastos Generales",{"$f":"SUM(B8:B98)","v":{"v":1050306.61,"d":"1,050,306.61"}}]
[]
[]
[]
[]
["GASTOS"]
["Son todos los egresos o salida de dinero que hace una persona o empresa para acreditarse derecho sobre  bienes y servicios recibidos."]
["El GASTO es una partida que disminuye el beneficio de la empresa o que aumenta la deuda o pérdida."]
["Siempre implicara el desembolso de una empresa o persona física."]